[Event "1st Welsh Masters 2019"]
[Site "Bridgend"]
[Date "2019.08.26"]
[Round "2.5"]
[White "Van Zyl-Rudd, Jack"]
[Black "Taylor, Adam C"]
[Result "1-0"]
[ECO "C67"]
[WhiteElo "2290"]
[BlackElo "2402"]
[Annotator "NA"]
[PlyCount "87"]
[EventDate "2019.08.26"]
[EventType "tourn"]
[EventCountry "WLS"]
[SourceTitle "playchess.com"]
[Source "ChessBase"]
[SourceQuality "1"]
[TimeControl "5400+30"]

1. e4 {[%emt 0:00:00]} e5 {[%emt 0:00:00]} 2. Nf3 {[%emt 0:00:00]} Nc6 {[%emt 0:00:00]} 3. Bb5 {[%emt 0:00:00]} Nf6 {[%emt 0:00:47]} 4. O-O {[%emt 0:00:00]} Nxe4 {[%emt 0:00:28]} 5. d4 {[%emt 0:00:00]} Nd6 {[%emt 0:00:27]} 6. Bxc6 {[%emt 0:00:00]} dxc6 {[%emt 0:00:06]} 7. dxe5 {[%emt 0:00:06]} Nf5 {[%emt 0:00:09]} 8. Qxd8+ {[%emt 0:00:06]} Kxd8 {[%emt 0:00:06]} 9. Nc3 {[%emt 0:00:06]} Be6 {[%emt 0:01:08]} 10. Rd1+ {[%emt 0:02:13]} Ke8 {[%emt 0:00:15]} 11. Ng5 {[%emt 0:00:54]} Bc4 {[%emt 0:13:19]} 12. b3 {[%emt 0:00:25]} Ba6 {[%emt 0:00:06]} 13. e6 {[%emt 0:02:28]} fxe6 {[%emt 0:00:07]} 14. Nxe6 {[%emt 0:00:08]} Bd6 {[%emt 0:00:11]} 15. Ne4 {[%emt 0:01:06]} Be5 {[%emt 0:30:03]} 16. Rb1 {[%emt 0:00:19]} Kf7 {[%emt 0:00:07]} 17. N6c5 {[%emt 0:01:04]} Rad8 {[%emt 0:04:22]} 18. Bg5 {[%emt 0:00:51]} Rxd1+ {[%emt 0:03:37]} 19. Rxd1 {[%emt 0:00:39]} Nd6 {[%emt 0:00:21]} 20. Nxd6+ {[%emt 0:00:45]} Bxd6 {[%emt 0:00:59]} 21. Nxa6 {[%emt 0:00:27]} bxa6 {[%emt 0:00:02]} 22. Be3 {[%emt 0:00:14]} c5 {[%emt 0:08:55]} 23. g3 {[%emt 0:00:57]} Rb8 {[%emt 0:04:33]} 24. Rd5 {[%emt 0:01:25]} a5 {[%emt 0:14:26]} 25. a4 {[%emt 0:05:50]} c4 {[%emt 0:00:16]} 26. bxc4 {[%emt 0:00:06]} Rb4 {[%emt 0:00:33]} 27. Rxa5 {[%emt 0:00:06]} Rxc4 {[%emt 0:00:11]} 28. Rxa7 {[%emt 0:00:07]} Rxc2 {[%emt 0:02:51]} 29. a5 {[%emt 0:00:26]} Rc6 {[%emt 0:12:42]} 30. a6 {[%emt 0:00:27]} Bc5 {[%emt 0:00:05]} 31. Bxc5 {[%emt 0:00:08]} Rxc5 {[%emt 0:00:05]} 32. Rb7 {[%emt 0:00:08]} Kg6 {[%emt 0:01:14]} 33. a7 {[%emt 0:00:06]} Ra5 {[%emt 0:00:04]} 34. Rxc7 {[%emt 0:00:07]} h5 {[%emt 0:00:04]} 35. h4 {[%emt 0:00:52]} Ra2 {[%emt 0:00:17]} 36. Kf1 {[%emt 0:00:12]} Kf6 {[%emt 0:00:08]} 37. Ke1 {[%emt 0:00:14]} g5 {[%emt 0:00:26]} 38. hxg5+ {[%emt 0:00:07]} Kxg5 {[%emt 0:00:04]} 39. Kd1 {[%emt 0:00:06]} Kg4 {[%emt 0:04:23]} 40. Rf7 {[%emt 0:00:07]} Kh3 {[%emt 0:01:16]} 41. Kc1 {[%emt 0:00:08]} Kg2 {[%emt 0:00:37]} 42. Kb1 {[%emt 0:00:06]} Rxa7 {[%emt 0:00:36]} 43. Rxa7 {[%emt 0:00:07]} Kxf2 {[%emt 0:00:05]} 44. Rg7 {[%emt 0:00:07]} 1-0

[Event "1st Welsh Masters 2019"]
[Site "Bridgend"]
[Date "2019.08.27"]
[Round "3.1"]
[White "Taylor, Adam C"]
[Black "Turner, Matthew J"]
[Result "1/2-1/2"]
[ECO "A38"]
[WhiteElo "2402"]
[BlackElo "2519"]
[Annotator "ChessBase"]
[PlyCount "34"]
[EventDate "2019.08.26"]
[EventType "tourn"]
[EventCountry "WLS"]
[SourceTitle "playchess.com"]
[Source "ChessBase"]
[SourceQuality "1"]
[TimeControl "5400+30"]

1. Nf3 {[%emt 0:00:00]} Nf6 {[%emt 0:00:00]} 2. c4 {[%emt 0:00:00]} c5 {[%emt 0:01:04]} 3. g3 {[%emt 0:01:38]} g6 {[%emt 0:00:28]} 4. Bg2 {[%emt 0:00:38]} Bg7 {[%emt 0:00:05]} 5. Nc3 {[%emt 0:00:10]} Nc6 {[%emt 0:01:02]} 6. O-O {[%emt 0:00:48]} d6 {[%emt 0:02:08]} 7. e3 {[%emt 0:09:07]} O-O {[%emt 0:04:04]} 8. Qe2 {[%emt 0:01:21]} Bf5 {[%emt 0:05:33]} 9. h3 {[%emt 0:10:49]} Rb8 {[%emt 0:03:59]} 10. d4 {[%emt 0:09:06]} Ne4 {[%emt 0:18:17]} 11. Nd5 {[%emt 0:10:25]} Bd7 {[%emt 0:00:41]} 12. Rd1 {[%emt 0:02:05]} Qc8 {[%emt 0:02:35]} 13. Kh2 {[%emt 0:03:23]} Re8 {[%emt 0:00:29]} 14. Ne1 {[%emt 0:07:43]} Nf6 {[%emt 0:01:31]} 15. Nxf6+ {[%emt 0:00:46]} Bxf6 {[%emt 0:00:22]} 16. dxc5 {[%emt 0:01:30]} dxc5 {[%emt 0:00:19]} 17. Nd3 {[%emt 0:00:02]} Ne5 {[%emt 0:55:53]} 1/2-1/2

[Event "1st Welsh Masters 2019"]
[Site "Bridgend"]
[Date "2019.08.27"]
[Round "3.3"]
[White "Varley, Peter"]
[Black "James, Dai"]
[Result "1-0"]
[ECO "A67"]
[WhiteElo "2171"]
[BlackElo "1858"]
[Annotator "NA"]
[PlyCount "66"]
[EventDate "2019.08.26"]
[EventType "tourn"]
[EventCountry "WLS"]
[SourceTitle "playchess.com"]
[Source "ChessBase"]
[SourceQuality "1"]
[TimeControl "5400+30"]

1. d4 {[%emt 0:00:00]} Nf6 {[%emt 0:00:58]} 2. c4 {[%emt 0:00:00]} c5 {[%emt 0:00:08]} 3. d5 {[%emt 0:00:00]} e6 {[%emt 0:00:13]} 4. Nc3 {[%emt 0:00:00]} exd5 {[%emt 0:00:06]} 5. cxd5 {[%emt 0:00:03]} d6 {[%emt 0:00:08] Decoy} 6. e4 $14 {[%emt 0:00:13]} g6 {[%emt 0:00:05]} 7. f4 {[%emt 0:00:16]} Bg7 {[%emt 0:01:00]} 8. Bb5+ {[%emt 0:00:09]} Nfd7 {[%emt 0:00:28]} 9. a4 {[%emt 0:00:18]} O-O {[%emt 0:04:55]} 10. Nf3 {[%emt 0:00:20]} Na6 {[%emt 0:09:35]} 11. O-O {[%emt 0:00:45]} Nc7 {[%emt 0:05:18]} 12. Bc4 {[%emt 0:03:49]} b6 {[%emt 0:02:24]} 13. Qd3 {[%emt 0:03:27]} Bb7 {[%emt 0:03:25]} 14. Bd2 {[%emt 0:02:39]} a6 {[%emt 0:04:51]} 15. Rae1 {[%emt 0:01:39]} b5 {[%emt 0:02:55]} 16. axb5 {[%emt 0:00:35]} axb5 {[%emt 0:00:32]} 17. Nxb5 {[%emt 0:00:34]} Nb6 {[%emt 0:02:18]} 18. Nxc7 {[%emt 0:03:02]} Qxc7 {[%emt 0:01:32]} 19. b3 {[%emt 0:00:35]} Rfe8 {[%emt 0:03:40]} 20. Bc3 {[%emt 0:04:16]} Nxc4 {[%emt 0:09:23]} 21. Bxg7 {[%emt 0:00:13]} Kxg7 {[%emt 0:05:41]} 22. bxc4 {[%emt 0:00:31]} f6 {[%emt 0:00:48]} 23. e5 {[%emt 0:04:59]} fxe5 {[%emt 0:05:17]} 24. fxe5 {[%emt 0:00:22]} dxe5 {[%emt 0:00:35]} 25. Ng5 {[%emt 0:00:19]} Kg8 {[%emt 0:06:55]} 26. Rf7 {[%emt 0:03:48]} Re7 {[%emt 0:03:19]} 27. Ref1 {[%emt 0:03:34]} Rxf7 {[%emt 0:05:56]} 28. Rxf7 {[%emt 0:02:43]} Qd8 {[%emt 0:07:54]} 29. Rg7+ {[%emt 0:02:00]} Kh8 {[%emt 0:00:12]} 30. Rxh7+ {[%emt 0:00:14]} Kg8 {[%emt 0:00:06]} 31. Qxg6+ {[%emt 0:00:08]} Kf8 {[%emt 0:00:27]} 32. Qd3 {[%emt 1:04:29]} Kg8 {[%emt 0:14:56]} 33. Rf7 {[%emt 0:00:30]} Qc7 1-0

[Event "1st Welsh Masters 2019"]
[Site "Bridgend"]
[Date "2019.08.27"]
[Round "3.4"]
[White "Arkell, Keith C"]
[Black "Toczek, Grzegorz"]
[Result "1-0"]
[ECO "A37"]
[WhiteElo "2445"]
[BlackElo "2246"]
[Annotator "NA RC"]
[PlyCount "135"]
[EventDate "2019.08.26"]
[EventType "tourn"]
[EventCountry "WLS"]
[SourceTitle "playchess.com"]
[Source "ChessBase"]
[SourceQuality "1"]
[TimeControl "5400+30"]

1. Nf3 {[%emt 0:01:07]} c5 {[%emt 0:00:00]} 2. c4 {[%emt 0:00:11]} g6 {[%emt 0:02:41]} 3. Nc3 {[%emt 0:00:06]} Bg7 {[%emt 0:00:14]} 4. g3 {[%emt 0:00:48]} Nc6 {[%emt 0:00:04]} 5. Bg2 {[%emt 0:00:12]} Nh6 {[%emt 0:02:36]} 6. a3 {[%emt 0:04:11]} O-O {[%emt 0:04:22]} 7. Rb1 {[%emt 0:00:06]} a5 {[%emt 0:00:03]} 8. O-O {[%emt 0:00:46]} Nf5 {[%emt 0:00:16]} 9. d3 {[%emt 0:00:14]} d6 {[%emt 0:04:04]} 10. Bd2 {[%emt 0:00:33] A37: Symmetrical English vs ...g6: 4 Bg2 Bg7 5 Nf3} e6 {[%emt 0:04:24]} (10... Bd7 11. Ne1 Nfd4 12. e3 Ne6 13. Nc2 a4 14. Nd5 Na5 15. Bc3 b5 16. Bxg7 Kxg7 17. cxb5 Bxb5 18. f4 Ra6 {1-0 (39) Wang,Y (2734)-Shanava,K (2560) Nakhchivan 2011}) 11. Ne1 {[%emt 0:05:48]} Nfe7 {[%emt 0:00:16]} 12. Nb5 $146 {[%emt 0:10:14]} ({Predecessor:} 12. Nc2 d5 13. cxd5 exd5 14. b4 cxb4 15. axb4 axb4 16. Nxb4 Nxb4 17. Rxb4 {0-1 (33) Macko,M (2181)-Nagy,G (2472) Slovakia 2018}) 12... Qd7 {[%emt 0:11:23]} 13. Bc3 {[%emt 0:02:04]} Rd8 {[%emt 0:19:38]} 14. Bxg7 {[%emt 0:00:24]} Kxg7 {[%emt 0:00:01]} 15. Nf3 {[%emt 0:06:14]} b6 {[%emt 0:00:34]} 16. d4 {[%emt 0:01:30]} Ba6 {[%emt 0:02:22]} 17. a4 {[%emt 0:00:06]} Nb4 {[%emt 0:04:34]} 18. Qd2 {[%emt 0:00:36]} Rac8 {[%emt 0:03:25]} 19. Rfd1 {[%emt 0:00:34]} Bxb5 {[%emt 0:01:10]} 20. axb5 {[%emt 0:00:37]} Qc7 {[%emt 0:01:15]} 21. b3 {[%emt 0:01:53]} Kg8 {[%emt 0:03:23]} 22. e4 {[%emt 0:01:45]} cxd4 {[%emt 0:03:58]} 23. Qh6 {[%emt 0:01:26]} f6 {[%emt 0:01:47]} 24. Nxd4 {[%emt 0:05:29]} Qd7 {[%emt 0:00:04]} 25. Bh3 {[%emt 0:01:36]} f5 {[%emt 0:00:01]} 26. Nf3 {[%emt 0:07:48]} Kh8 {[%emt 0:05:33]} 27. Rd3 {[%emt 0:47:12]} d5 28. Rxd5 {[%emt 0:00:00]} Ng8 {[%emt 0:00:34]} 29. Rxd7 {[%emt 0:00:00]} Nxh6 {[%emt 0:00:10]} 30. Rb7 {[%emt 0:00:00]} Rb8 {[%emt 0:01:23]} 31. Rxb8 {[%emt 0:00:00]} Rxb8 {[%emt 0:00:01]} 32. Rd1 {[%emt 0:00:00]} Nf7 {[%emt 0:00:04]} 33. Rd7 {[%emt 0:00:00]} Kg8 {[%emt 0:00:01]} 34. exf5 {[%emt 0:00:00]} exf5 {[%emt 0:00:34]} 35. g4 {[%emt 0:00:00]} fxg4 {[%emt 0:00:41]} 36. Bxg4 {[%emt 0:00:00]} Rd8 {[%emt 0:00:03]} 37. Rb7 {[%emt 0:00:00]} Rd6 {[%emt 0:00:05]} 38. Bd7 {[%emt 0:00:00]} Nd8 {[%emt 0:00:56]} 39. Rc7 {[%emt 0:00:00]} Nd3 {[%emt 0:00:18]} 40. Bc6 {[%emt 0:00:00]} Nf4 {[%emt 0:27:02]} 41. h4 {[%emt 0:00:00]} Nfe6 {[%emt 0:00:00]} 42. Rc8 {[%emt 0:00:00]} Kg7 {[%emt 0:00:00]} 43. Ng5 {[%emt 0:00:00]} Nc5 {[%emt 0:00:00]} 44. Bd5 {[%emt 0:00:00]} h6 {[%emt 0:00:00] [#]} 45. Ne4 {[%emt 0:00:00]} (45. Rxc5 $1 $18 {is the precise move to win.} bxc5 46. Ne4 {[%mdl 64] Double Attack}) 45... Nxe4 {[%emt 0:00:00]} 46. Bxe4 {[%emt 0:00:00]} Kf6 {[%emt 0:00:00]} (46... Ne6 $16 {was worth a try.}) 47. c5 {[%emt 0:00:00]} bxc5 {[%emt 0:00:00]} 48. b6 $1 {[%emt 0:00:00]} ({Don't take} 48. Rxc5 $6 Ne6 $14) 48... Rxb6 {[%emt 0:00:00]} 49. Rxd8 {[%emt 0:00:00]} Rxb3 {[%emt 0:00:00]} 50. Ra8 {[%emt 0:00:00]} Rb4 {[%emt 0:00:00]} 51. f3 {[%emt 0:00:00]} a4 {[%emt 0:00:00]} 52. Kf2 {[%emt 0:00:00]} Ke5 {[%emt 0:00:00]} 53. Bxg6 {[%emt 0:00:08]} Rxh4 {[%emt 0:00:00]} 54. Be4 {[%emt 0:00:12]} Kd4 {[%emt 0:00:00]} 55. Rxa4+ {[%emt 0:00:06]} c4 {[%emt 0:00:00]} 56. Bh7 {[%emt 0:01:40]} Rf4 $18 {[%emt 0:00:00]} 57. Ra6 {[%emt 0:04:03]} Rh4 {[%emt 0:00:00]} 58. Rd6+ {[%emt 0:00:41]} Kc3 {[%emt 0:00:00]} 59. Rd1 {[%emt 0:00:37]} Rd4 {[%emt 0:00:00]} 60. Rh1 {[%emt 0:00:10]} Rd6 {[%emt 0:00:00]} 61. Ke3 {[%emt 0:00:14]} Kb2 {[%emt 0:00:00]} 62. Rb1+ {[%emt 0:00:17]} Ka2 {[%emt 0:00:00]} 63. Rb7 {[%emt 0:00:42]} c3 {[%emt 0:00:00]} 64. Bb1+ {[%emt 0:01:27]} Ka1 {[%emt 0:00:00]} 65. Be4 {[%emt 0:00:53]} h5 {[%emt 0:00:29]} 66. Rh7 {[%emt 0:00:42]} Rc6 {[%emt 0:01:28]} 67. Ra7+ {[%emt 0:01:36]} Kb2 {[%emt 0:00:07]} 68. Rb7+ {[%emt 0:00:04]} 1-0

[Event "1st Welsh Masters 2019"]
[Site "Bridgend"]
[Date "2019.08.27"]
[Round "4.1"]
[White "Turner, Matthew J"]
[Black "Willow, Jonah B"]
[Result "1-0"]
[ECO "A46"]
[WhiteElo "2519"]
[BlackElo "2326"]
[Annotator "ChessBase"]
[PlyCount "55"]
[EventDate "2019.08.26"]
[EventType "tourn"]
[EventCountry "WLS"]
[SourceTitle "playchess.com"]
[Source "ChessBase"]
[SourceQuality "1"]
[TimeControl "5400+30"]

1. d4 Nf6 {[%emt 0:00:00]} 2. Nf3 {[%emt 0:00:53]} e6 {[%emt 0:00:00]} 3. Bg5 {[%emt 0:01:23]} h6 {[%emt 0:00:00]} 4. Bh4 {[%emt 0:00:24]} b6 {[%emt 0:00:00]} 5. Nbd2 {[%emt 0:00:41]} Bb7 {[%emt 0:00:05]} 6. e3 {[%emt 0:00:23]} Be7 {[%emt 0:00:22]} 7. c3 {[%emt 0:00:58]} c5 {[%emt 0:03:53]} 8. a4 {[%emt 0:06:24]} cxd4 {[%emt 0:00:43]} 9. exd4 {[%emt 0:00:31]} d6 {[%emt 0:08:56]} 10. Bb5+ {[%emt 0:03:59]} Nbd7 {[%emt 0:07:43]} 11. Bxf6 {[%emt 0:00:53]} Bxf6 {[%emt 0:02:29]} 12. a5 {[%emt 0:00:26]} a6 {[%emt 0:15:02]} 13. Bd3 {[%emt 0:20:26]} b5 {[%emt 0:07:41]} 14. O-O {[%emt 0:00:40]} Bxf3 {[%emt 0:02:05]} 15. Qxf3 {[%emt 0:01:43]} d5 {[%emt 0:00:13]} 16. Qh3 {[%emt 0:06:53]} Qc7 {[%emt 0:13:19]} 17. f4 {[%emt 0:04:42]} b4 {[%emt 0:03:12]} 18. Rac1 {[%emt 0:01:49]} bxc3 {[%emt 0:04:39]} 19. bxc3 {[%emt 0:00:12]} Rb8 {[%emt 0:02:11]} 20. Rc2 {[%emt 0:06:44]} Qxa5 {[%emt 0:06:03]} 21. Nf3 {[%emt 0:00:48]} Qb6 {[%emt 0:05:06]} 22. Kh1 {[%emt 0:03:02]} Qd6 {[%emt 0:13:51]} 23. g4 {[%emt 0:06:44]} g6 {[%emt 0:00:26]} 24. f5 {[%emt 0:01:02]} exf5 {[%emt 0:00:15]} 25. gxf5 {[%emt 0:00:20]} g5 {[%emt 0:00:05]} 26. Re2+ {[%emt 0:06:06]} Kf8 {[%emt 0:00:12]} 27. Ne5 {[%emt 0:00:50]} Re8 {[%emt 0:02:54]} 28. Nxf7 {[%emt 0:01:31]} 1-0

[Event "1st Welsh Masters 2019"]
[Site "Bridgend"]
[Date "2019.08.27"]
[Round "4.2"]
[White "Toczek, Grzegorz"]
[Black "Kett, Tim"]
[Result "1-0"]
[ECO "C41"]
[WhiteElo "2246"]
[BlackElo "2245"]
[Annotator "NA"]
[PlyCount "53"]
[EventDate "2019.08.26"]
[EventType "tourn"]
[EventCountry "WLS"]
[SourceTitle "playchess.com"]
[Source "ChessBase"]
[SourceQuality "1"]
[TimeControl "5400+30"]

1. e4 {[%emt 0:00:00]} d6 {[%emt 0:00:00]} 2. d4 {[%emt 0:00:00]} Nf6 {[%emt 0:00:00]} 3. Nc3 {[%emt 0:00:00]} e5 {[%emt 0:00:00]} 4. Nf3 {[%emt 0:00:00]} Nbd7 {[%emt 0:00:02]} 5. g4 {[%emt 0:00:35]} g6 {[%emt 0:09:59]} 6. g5 {[%emt 0:00:04]} Nh5 {[%emt 0:00:10]} 7. Be3 {[%emt 0:03:30]} Bg7 {[%emt 0:00:41]} 8. Qd2 {[%emt 0:01:42]} O-O {[%emt 0:01:09]} 9. Be2 {[%emt 0:05:24]} c6 {[%emt 0:10:59]} 10. O-O-O {[%emt 0:13:28]} Qa5 {[%emt 0:02:19]} 11. Kb1 {[%emt 0:00:46]} b5 {[%emt 0:02:15]} 12. a3 {[%emt 0:05:30]} Rb8 {[%emt 0:05:21]} 13. dxe5 {[%emt 0:00:04]} dxe5 {[%emt 0:03:48]} 14. Nd5 {[%emt 0:00:32]} Qd8 {[%emt 0:00:55]} 15. Nb4 {[%emt 0:00:18]} Qc7 {[%emt 0:08:02]} 16. Qd6 {[%emt 0:00:10]} Rb7 {[%emt 0:00:46]} 17. Nxc6 {[%emt 0:00:48]} Nf4 {[%emt 0:01:19]} 18. Qxc7 {[%emt 0:05:29]} Rxc7 {[%emt 0:00:05]} 19. Bxb5 {[%emt 0:00:08]} Rxc6 {[%emt 0:06:51]} 20. Bxc6 {[%emt 0:04:54]} Nb8 {[%emt 0:00:08]} 21. Bxf4 {[%emt 0:00:05]} exf4 {[%emt 0:07:40]} 22. Bd5 {[%emt 0:00:31]} Bg4 {[%emt 0:00:27]} 23. Rd3 {[%emt 0:00:06]} Nd7 {[%emt 0:00:10]} 24. h3 {[%emt 0:03:52]} Bh5 {[%emt 0:00:32]} 25. b4 {[%emt 0:00:32]} a5 {[%emt 0:00:35]} 26. Re1 {[%emt 0:07:03]} axb4 {[%emt 0:00:12]} 27. axb4 {[%emt 0:00:22]} 1-0

[Event "1st Welsh Masters 2019"]
[Site "Bridgend"]
[Date "2019.08.27"]
[Round "4.3"]
[White "James, Dai"]
[Black "Arkell, Keith C"]
[Result "0-1"]
[ECO "B10"]
[WhiteElo "1858"]
[BlackElo "2445"]
[Annotator "NA"]
[PlyCount "70"]
[EventDate "2019.08.26"]
[EventType "tourn"]
[EventCountry "WLS"]
[SourceTitle "playchess.com"]
[Source "ChessBase"]
[SourceQuality "1"]
[TimeControl "5400+30"]

1. e4 {[%emt 0:00:02]} c6 {[%emt 0:00:00]} 2. d3 {[%emt 0:01:26]} d5 {[%emt 0:00:00]} 3. Nd2 {[%emt 0:00:05]} Qc7 {[%emt 0:00:00]} 4. g3 {[%emt 0:00:33]} Nf6 {[%emt 0:00:02]} 5. Bg2 {[%emt 0:00:55]} e5 {[%emt 0:01:31]} 6. Ngf3 {[%emt 0:01:33]} Bg4 {[%emt 0:00:07]} 7. h3 {[%emt 0:01:02]} Bxf3 {[%emt 0:00:10]} 8. Qxf3 {[%emt 0:02:25]} Nbd7 {[%emt 0:00:06]} 9. O-O {[%emt 0:00:45]} Be7 {[%emt 0:02:42]} 10. Re1 {[%emt 0:04:11]} O-O {[%emt 0:00:08]} 11. c3 {[%emt 0:02:47]} Rad8 {[%emt 0:01:23]} 12. Nf1 {[%emt 0:00:35]} dxe4 {[%emt 0:00:12]} 13. dxe4 {[%emt 0:00:08]} Nc5 {[%emt 0:00:08]} 14. Qe2 {[%emt 0:01:01]} Nd3 {[%emt 0:00:32]} 15. Rd1 {[%emt 0:01:15]} Nxc1 {[%emt 0:00:12]} 16. Raxc1 {[%emt 0:00:55]} Bc5 {[%emt 0:00:42]} 17. Nd2 {[%emt 0:24:23]} a5 {[%emt 0:01:44]} 18. a4 {[%emt 0:01:41]} h5 {[%emt 0:02:59]} 19. Nf3 {[%emt 0:07:04]} g6 {[%emt 0:02:13]} 20. Ne1 {[%emt 0:02:11]} h4 {[%emt 0:01:35]} 21. Kh2 {[%emt 0:00:52]} hxg3+ {[%emt 0:00:36]} 22. fxg3 {[%emt 0:00:19]} Kg7 {[%emt 0:00:13]} 23. Rxd8 {[%emt 0:02:38]} Rxd8 {[%emt 0:00:05]} 24. Rd1 {[%emt 0:04:59]} Rh8 {[%emt 0:06:29]} 25. Nd3 {[%emt 0:08:42]} Ba7 {[%emt 0:01:08]} 26. Rf1 {[%emt 0:01:48]} Qd6 {[%emt 0:00:43]} 27. g4 {[%emt 0:09:57]} Nh7 {[%emt 0:07:20]} 28. Rd1 {[%emt 0:05:32]} Qe7 {[%emt 0:01:07]} 29. Qf3 {[%emt 0:03:11]} Qg5 {[%emt 0:03:10]} 30. Rf1 {[%emt 0:06:38]} Nf6 {[%emt 0:00:20]} 31. Kh1 {[%emt 0:01:29]} b5 {[%emt 0:06:26]} 32. Nf2 {[%emt 0:01:30]} Rd8 {[%emt 0:05:54]} 33. Nd3 {[%emt 0:00:42]} Rd6 {[%emt 0:04:02]} 34. Kh2 {[%emt 0:00:35]} Be3 {[%emt 0:00:40]} 35. Kh1 {[%emt 0:00:24]} Rxd3 {[%emt 0:52:51]} 0-1

[Event "1st Welsh Masters 2019"]
[Site "Bridgend"]
[Date "2019.08.27"]
[Round "4.5"]
[White "Taylor, Adam C"]
[Black "Waddington, Mike P"]
[Result "1-0"]
[ECO "E61"]
[WhiteElo "2402"]
[BlackElo "2023"]
[Annotator "NA"]
[PlyCount "69"]
[EventDate "2019.08.26"]
[EventType "tourn"]
[EventCountry "WLS"]
[SourceTitle "playchess.com"]
[Source "ChessBase"]
[SourceQuality "1"]
[TimeControl "5400+30"]

1. Nf3 {[%emt 0:00:00]} Nf6 {[%emt 0:00:00]} 2. c4 {[%emt 0:00:00]} g6 {[%emt 0:00:00]} 3. b3 {[%emt 0:00:00]} Bg7 {[%emt 0:00:12]} 4. Bb2 {[%emt 0:00:00]} O-O {[%emt 0:00:21]} 5. g3 {[%emt 0:00:03]} d6 {[%emt 0:00:31]} 6. d4 {[%emt 0:00:04]} Nc6 {[%emt 0:02:17]} 7. Bg2 {[%emt 0:00:30]} e5 {[%emt 0:00:55]} 8. O-O {[%emt 0:06:11]} exd4 {[%emt 0:07:18]} 9. Nxd4 {[%emt 0:00:07]} Bd7 {[%emt 0:00:41]} 10. Nc3 {[%emt 0:00:54]} Re8 {[%emt 0:01:05]} 11. e3 {[%emt 0:01:10]} Nxd4 {[%emt 0:03:37]} 12. exd4 {[%emt 0:01:36]} Bc6 {[%emt 0:02:00]} 13. d5 {[%emt 0:00:22]} Bd7 {[%emt 0:00:08]} 14. Qd2 {[%emt 0:02:42]} Bf5 {[%emt 0:02:09]} 15. f3 {[%emt 0:08:23]} h5 {[%emt 0:06:52]} 16. Rae1 {[%emt 0:06:30]} Qd7 {[%emt 0:04:18]} 17. Ne4 {[%emt 0:05:51]} Nxe4 {[%emt 0:15:43]} 18. fxe4 {[%emt 0:00:17]} Bxb2 {[%emt 0:00:56]} 19. exf5 {[%emt 0:00:09]} Bg7 {[%emt 0:09:58]} 20. fxg6 {[%emt 0:07:49]} fxg6 {[%emt 0:00:43]} 21. Re6 {[%emt 0:00:03]} Rf8 {[%emt 0:03:32]} 22. Rfe1 {[%emt 0:05:36]} Rae8 {[%emt 0:06:52]} 23. Bh3 {[%emt 0:03:41]} Qd8 {[%emt 0:08:38]} 24. Rxg6 {[%emt 0:02:19]} Rxe1+ {[%emt 0:01:22]} 25. Qxe1 {[%emt 0:00:05]} Qe8 {[%emt 0:01:43]} 26. Be6+ {[%emt 0:13:31]} Kh8 {[%emt 0:02:23]} 27. Qe4 {[%emt 0:01:39]} Rf6 {[%emt 0:02:32]} 28. Rg5 {[%emt 0:00:37]} Rh6 {[%emt 0:03:30]} 29. h4 {[%emt 0:01:29]} b6 {[%emt 0:00:40]} 30. Qf5 {[%emt 0:01:01]} a5 {[%emt 0:08:44]} 31. a4 {[%emt 0:00:05]} c6 {[%emt 0:02:48]} 32. Kh1 {[%emt 0:02:36]} cxd5 {[%emt 0:00:10]} 33. cxd5 {[%emt 0:00:15]} b5 {[%emt 0:00:10]} 34. axb5 {[%emt 0:00:20]} Qxb5 {[%emt 0:00:09]} 35. Rxg7 {[%emt 0:00:20]} 1-0

[Event "1st Welsh Masters 2019"]
[Site "Bridgend"]
[Date "2019.08.28"]
[Round "5.2"]
[White "Varley, Peter"]
[Black "Taylor, Adam C"]
[Result "0-1"]
[ECO "A58"]
[WhiteElo "2171"]
[BlackElo "2402"]
[Annotator "NA"]
[PlyCount "62"]
[EventDate "2019.08.26"]
[EventType "tourn"]
[EventCountry "WLS"]
[SourceTitle "playchess.com"]
[Source "ChessBase"]
[SourceQuality "1"]
[TimeControl "5400+30"]

{[%evp 8,52,16,22,75,66,71,37,33,38,29,12,26,47,32767,32767,32767,32767,0,-16,-12,-26,-12,-13,5,-2,35,18,12,0,32767,0,32767,32767,89,32767,262,61,160,0,0,0,0,-27,-43,-347,-358]} 1. d4 {[%emt 0:00:00]} Nf6 {[%emt 0:00:00]} 2. c4 {[%emt 1:31:00]} c5 {[%emt 0:00:17]} 3. d5 {[%emt 0:00:00]} b5 {[%emt 0:00:05]} 4. cxb5 {[%emt 0:00:00]} a6 {[%emt 0:00:05]} 5. bxa6 {[%emt 0:00:00]} g6 {[%emt 0:00:06]} 6. Nc3 {[%emt 0:00:00] A58: Benko/Volga Gambit: Lines with 5 bxa6} Bg7 {[%emt 0:00:04]} 7. g3 {[%emt 0:00:00]} (7. e4 O-O 8. e5 Ne8 9. h4 Bxe5 10. Bh6 Bxa6 11. h5 Ng7 12. Nf3 Bxc3+ 13. bxc3 Bxf1 14. Kxf1 {1-0 (22) So,W (2780)-Duda,J (2737) chess.com INT 2018}) 7... Qa5 {[%emt 0:03:27]} 8. Bd2 {[%emt 0:00:00]} O-O {[%emt 0:07:36]} 9. Bg2 {[%emt 0:00:00]} d6 {[%emt 0:00:05]} 10. Nf3 {[%emt 0:00:00]} Qb6 {[%emt 0:00:09]} 11. b3 {[%emt 0:00:00]} Nxa6 {[%emt 0:00:26]} 12. O-O {[%emt 0:00:00]} Nb4 {[%emt 0:04:08]} 13. Ng5 $146 {[%emt 0:00:00]} ({Predecessor:} 13. Nh4 Bb7 14. e4 Ba6 15. Re1 Nd7 16. Na4 {0-1 (44) Drasko,M (2555)-Martinovic,S (2495) Niksic 1997}) 13... Bb7 {[%emt 0:12:12]} 14. e4 {[%emt 0:00:00]} Ba6 {[%emt 0:00:27]} 15. Re1 {[%emt 0:00:00]} Nd7 {[%emt 0:12:18]} 16. Na4 {[%emt 0:00:00]} Qb7 {[%emt 0:00:42]} 17. Bc3 {[%emt 0:00:00]} Ne5 {[%emt 0:09:19]} 18. Bf1 {[%emt 0:00:00]} h6 {[%emt 0:17:33]} 19. Nh3 {[%emt 0:00:00]} f5 {[%emt 0:00:05]} 20. Bxa6 {[%emt 0:00:00]} Qxa6 {[%emt 0:01:43]} 21. exf5 {[%emt 0:00:00]} Qa7 $2 {[%emt 0:13:54]} (21... Qd3 $16 {might work better.}) 22. f4 $2 {[%emt 0:00:00]} (22. Nf4 $18) 22... Ned3 {[%emt 0:00:09] [#]} (22... c4+ $1 $14 23. Kh1 cxb3) 23. Bxg7 {[%emt 0:00:00]} ({Not} 23. fxg6 c4+ 24. Kh1 Bxc3 $17) (23. Qg4 $1 $16 c4+ 24. Kf1 Rxf5 25. Qxg6) 23... Kxg7 {[%emt 0:00:17]} 24. Re6 {[%emt 0:00:00]} Rxf5 {[%emt 0:01:17]} 25. Qg4 {[%emt 0:00:00]} Rf6 {[%emt 0:00:32]} 26. Nc3 $2 {[%emt 0:00:00]} ({White should try} 26. Re4 $1 $15) 26... c4+ $19 {[%emt 0:03:15]} 27. Kg2 {[%emt 0:01:02]} Nc2 {[%emt 0:00:53]} 28. Qe2 {[%emt 0:02:23]} Rxe6 {[%emt 0:02:47]} 29. Qxc2 {[%emt 0:01:34]} Ne1+ {[%emt 0:00:57]} 30. Rxe1 {[%emt 0:00:05]} Rxe1 {[%emt 0:00:03]} 31. Ne4 {[%emt 0:01:24]} Qxa2 {[%emt 0:00:06]} 0-1